[Event "25th Zadar Open 2018"]
[Site "Zadar"]
[Date "2018.12.22"]
[Round "9.24"]
[White "Bratovic, Blaz"]
[Black "Sahil, Tickoo"]
[Result "1-0"]
[ECO "B99"]
[WhiteElo "2307"]
[BlackElo "2224"]
[Annotator "NA"]
[PlyCount "101"]
[EventDate "2018.12.15"]
[EventType "swiss"]
[EventCountry "CRO"]
[SourceTitle "playchess.com"]
[Source "ChessBase"]
[SourceQuality "1"]
[TimeControl "40/5400+30:1800+30"]

1. e4 {[%emt 0:06:30]} c5 {[%emt 0:00:30]} 2. Nf3 {[%emt 0:01:30]} d6 {[%emt 0:00:00]} 3. d4 {[%emt 0:00:30]} cxd4 {[%emt 0:00:00]} 4. Nxd4 {[%emt 0:00:00]} Nf6 {[%emt 0:00:30]} 5. Nc3 {[%emt 0:00:00]} a6 {[%emt 0:00:00]} 6. Bg5 {[%emt 0:00:00]} e6 {[%emt 0:00:00]} 7. f4 {[%emt 0:00:00]} Be7 {[%emt 0:00:00]} 8. Qf3 {[%emt 0:00:30]} Qc7 {[%emt 0:00:00]} 9. O-O-O {[%emt 0:00:00]} Nbd7 {[%emt 0:00:00]} 10. g4 {[%emt 0:00:00]} h6 {[%emt 0:00:00] B99: Sicilian Najdorf: 6 Bg5 e6 7 f4 Be7 8 Qf3 Qc7 9 0-0-0 Nbd7} (10... b5 11. Bxf6 Nxf6 12. g5 Nd7 13. f5 O-O 14. h4 b4 15. Nce2 Bb7 16. Kb1 Rac8 17. Bh3 e5 18. f6 exd4 19. fxe7 Rfe8 20. Nxd4 Rxe7 21. Nf5 Rxe4 22. Nxd6 Rd4 23. Qxf7+ Kh8 24. Nxc8 {1-0 (24) Sutovsky,E (2683)-Huschenbeth,N (2596) Douglas 2017}) 11. Bxf6 {[%emt 0:00:00]} Bxf6 {[%emt 0:00:30]} 12. Kb1 {[%emt 0:00:00]} g5 {[%emt 0:05:30]} 13. e5 {[%emt 0:02:30]} dxe5 {[%emt 0:06:30]} 14. Nxe6 $1 {[%emt 0:00:30]} fxe6 {[%emt 0:06:30]} 15. fxg5 {[%emt 0:00:30]} Bxg5 {[%emt 0:09:30]} 16. Ne4 {[%emt 0:05:30]} Rf8 {[%emt 0:06:30]} 17. Qh3 $1 {[%emt 0:02:30]} Ke7 $146 {[%emt 0:25:30]} ({Predecessor:} 17... Bf4 18. Qh5+ {0-1 (34) Stachanczyk,J (2259)-Zsiltzova Lisenko,L (2224) Lyon 2015}) 18. Bg2 {[%emt 0:04:30]} Nf6 {[%emt 0:01:30]} 19. Qa3+ {[%emt 0:04:30]} Kf7 {[%emt 0:02:30]} 20. h4 {[%emt 0:00:30]} Bf4 {[%emt 0:14:32]} 21. Nxf6 {[%emt 0:00:00]} Qe7 {[%emt 0:00:28]} 22. Qxe7+ {[%emt 0:03:00]} Kxe7 {[%emt 0:00:30]} 23. g5 {[%emt 0:00:30]} hxg5 {[%emt 0:13:08]} 24. hxg5 {[%emt 0:00:30]} Bxg5 $18 {[%emt 0:01:48]} 25. Nh7 {[%emt 0:11:30]} Rg8 {[%emt 0:00:25]} 26. Nxg5 {[%emt 0:02:30]} Rxg5 {[%emt 0:00:03]} 27. Rh7+ {[%emt 0:00:00]} Kf6 {[%emt 0:01:04]} 28. Be4 {[%emt 0:00:00]} Rg4 {[%emt 0:00:15]} 29. Bh1 {[%emt 0:01:30]} e4 {[%emt 0:03:42]} 30. b3 {[%emt 0:00:30]} b5 {[%emt 0:01:09]} 31. Kb2 {[%emt 0:00:30]} a5 {[%emt 0:01:33]} 32. Rd4 {[%emt 0:03:30]} Ke5 {[%emt 0:00:55]} 33. c3 {[%emt 0:00:30]} Ra6 {[%emt 0:00:51]} 34. Bxe4 {[%emt 0:00:30]} b4 {[%emt 0:00:35]} 35. Rh5+ {[%emt 0:02:30]} Kf6 {[%emt 0:00:01]} 36. Rh8 {[%emt 0:00:00]} bxc3+ {[%emt 0:00:38]} 37. Kxc3 {[%emt 0:00:00]} e5 {[%emt 0:00:25]} 38. Ra4 {[%emt 0:01:30]} Bf5 {[%emt 0:00:49]} 39. Rf8+ {[%emt 0:01:30]} Ke6 {[%emt 0:00:35]} 40. Bxf5+ {[%emt 0:00:00]} Ke7 {[%emt 0:00:00]} 41. Rxg4 {[%emt 0:01:00]} Kxf8 {[%emt 0:00:34]} 42. Bd3 {[%emt 0:01:30]} Ra7 {[%emt 0:00:30]} 43. Bc4 {[%emt 0:00:00]} Rh7 {[%emt 0:00:30]} 44. Rg8+ {[%emt 0:01:00]} Ke7 {[%emt 0:00:00]} 45. Ra8 {[%emt 0:00:00]} Rh3+ {[%emt 0:00:00]} 46. Kb2 {[%emt 0:00:00]} Kf6 {[%emt 0:00:30]} 47. Rxa5 {[%emt 0:00:00]} Kf5 {[%emt 0:00:00]} 48. Ra8 {[%emt 0:00:00]} e4 {[%emt 0:00:00]} 49. a4 {[%emt 0:00:00]} e3 {[%emt 0:00:00]} 50. Re8 {[%emt 0:00:00]} Kf4 {[%emt 0:00:00]} 51. a5 {[%emt 0:00:00]} 1-0

[Event "25th Zadar Open 2018"]
[Site "Zadar"]
[Date "2018.12.22"]
[Round "9.25"]
[White "Blagojevic, Tijana"]
[Black "Der Manuelian, Haik"]
[Result "0-1"]
[ECO "C47"]
[WhiteElo "2208"]
[BlackElo "2262"]
[Annotator "NA"]
[PlyCount "92"]
[EventDate "2018.12.15"]
[EventType "swiss"]
[EventCountry "CRO"]
[SourceTitle "playchess.com"]
[Source "ChessBase"]
[SourceQuality "1"]
[TimeControl "40/5400+30:1800+30"]

1. e4 {[%emt 0:00:30]} e5 {[%emt 0:00:30]} 2. Nf3 {[%emt 0:00:00]} Nc6 {[%emt 0:00:30]} 3. Nc3 {[%emt 0:00:00]} Nf6 {[%emt 0:00:00]} 4. d4 {[%emt 0:00:00]} exd4 {[%emt 0:00:00]} 5. Nxd4 {[%emt 0:00:00]} Bb4 {[%emt 0:00:00]} 6. Nxc6 {[%emt 0:00:30]} bxc6 {[%emt 0:00:00]} 7. Bd3 {[%emt 0:00:00]} d5 {[%emt 0:00:00]} 8. exd5 {[%emt 0:00:00]} cxd5 {[%emt 0:00:00]} 9. O-O {[%emt 0:00:00]} O-O {[%emt 0:00:30]} 10. h3 {[%emt 0:00:00] C47: Scotch Four Knights and Four Knights with 4 g3} h6 {[%emt 0:00:00]} (10... c6 11. Qf3 Bd6 12. Bf4 Be6 13. Rfe1 Bxf4 14. Qxf4 Qb8 15. Qxb8 Raxb8 16. Na4 Nd7 17. b3 c5 {½-½ (35) Nakamura,H (2777)-So,W (2780) Saint Louis 2018}) 11. Qf3 {[%emt 0:00:30]} Re8 {[%emt 0:01:00]} 12. Bf4 {[%emt 0:00:30]} c6 {[%emt 0:00:00]} 13. Rfe1 {[%emt 0:00:30]} Be6 {[%emt 0:00:00]} 14. a3 {[%emt 0:00:30]} Bd6 {[%emt 0:01:30] LiveBook: 3 Games} 15. Ne2 {[%emt 0:01:30]} c5 {[%emt 0:00:30]} 16. Rad1 $146 {[%emt 0:00:30]} ({Predecessor:} 16. c3 a5 17. Rad1 Rb8 {½-½ (60) Betaneli,A (2204)-Sturt,R (2446) Saint Louis 2017}) 16... d4 {[%emt 0:08:30]} 17. c4 {[%emt 0:12:30]} Bxf4 {[%emt 0:23:30]} 18. Nxf4 {[%emt 0:01:30]} Rb8 {[%emt 0:05:30]} 19. Nxe6 {[%emt 0:04:30]} Rxe6 {[%emt 0:01:30]} 20. Rxe6 {[%emt 0:00:00]} fxe6 {[%emt 0:00:30]} 21. Re1 {[%emt 0:04:00]} Qd6 {[%emt 0:05:30]} 22. Re2 {[%emt 0:03:30]} e5 {[%emt 0:09:30]} 23. Qf5 {[%emt 0:01:30]} Re8 {[%emt 0:00:30]} 24. f3 {[%emt 0:01:30]} Qe6 {[%emt 0:05:30]} 25. Qg6 {[%emt 0:03:30]} a5 {[%emt 0:05:30]} 26. g4 {[%emt 0:04:30]} Qf7 {[%emt 0:04:30]} 27. Qf5 {[%emt 0:00:30]} Qe6 {[%emt 0:05:30]} 28. Qg6 {[%emt 0:00:30]} e4 {[%emt 0:07:40]} 29. Bxe4 {[%emt 0:10:30]} Qxc4 {[%emt 0:00:08]} 30. Rc2 {[%emt 0:00:30]} Qb5 {[%emt 0:01:33]} 31. Bd3 {[%emt 0:02:30]} Qc6 {[%emt 0:00:48]} 32. Qf5 {[%emt 0:03:30]} Qd6 {[%emt 0:04:12]} 33. Kg2 {[%emt 0:00:30]} Nd5 {[%emt 0:06:36]} 34. Bc4 {[%emt 0:04:30]} Re5 {[%emt 0:00:02]} 35. Qd3 {[%emt 0:03:30]} Kh8 {[%emt 0:01:06]} 36. Bxd5 {[%emt 0:00:00]} Qxd5 {[%emt 0:00:26]} 37. Re2 {[%emt 0:00:00]} Rxe2+ {[%emt 0:01:18]} 38. Qxe2 {[%emt 0:00:30]} c4 {[%emt 0:02:22]} 39. Kf2 {[%emt 0:00:30]} d3 {[%emt 0:01:15]} 40. Qd2 {[%emt 0:00:00]} Qd4+ {[%emt 0:00:00]} 41. Kf1 {[%emt 0:02:00]} a4 {[%emt 0:08:34]} 42. Kg2 {[%emt 0:00:00]} Qd8 {[%emt 0:03:30]} 43. Kg3 $2 {[%emt 0:04:00]} (43. h4 {is more resistant.}) 43... Qb8+ {[%emt 0:01:35]} 44. Kg2 {[%emt 0:00:30] [#]} (44. f4 $142 Qe8 45. Kf2) 44... Qb3 $19 {[%emt 0:01:30]} 45. Qa5 {[%emt 0:05:30]} Qc2+ {[%emt 0:01:40]} 46. Kf1 {[%emt 0:00:00]} d2 {[%emt 0:01:07]} 0-1

[Event "25th Zadar Open 2018"]
[Site "Zadar"]
[Date "2018.12.22"]
[Round "9.26"]
[White "Mohite, Ranveer"]
[Black "Schloffer, Jasmin-Denise"]
[Result "1-0"]
[ECO "C99"]
[WhiteElo "2236"]
[BlackElo "2115"]
[Annotator "NA"]
[PlyCount "131"]
[EventDate "2018.12.15"]
[EventType "swiss"]
[EventCountry "CRO"]
[SourceTitle "playchess.com"]
[Source "ChessBase"]
[SourceQuality "1"]
[TimeControl "40/5400+30:1800+30"]

1. e4 {[%emt 0:01:30]} e5 {[%emt 0:00:30]} 2. Nf3 {[%emt 0:00:30]} Nc6 {[%emt 0:00:00]} 3. Bb5 {[%emt 0:00:00]} a6 {[%emt 0:00:00]} 4. Ba4 {[%emt 0:00:00]} Nf6 {[%emt 0:00:00]} 5. O-O {[%emt 0:00:00]} Be7 {[%emt 0:00:00]} 6. Re1 {[%emt 0:00:00]} b5 {[%emt 0:00:00]} 7. Bb3 {[%emt 0:00:30]} d6 {[%emt 0:00:00]} 8. c3 {[%emt 0:00:30]} O-O {[%emt 0:00:00]} 9. h3 {[%emt 0:01:30]} Na5 {[%emt 0:00:00] LiveBook: 7243 Games} 10. Bc2 {[%emt 0:01:30]} c5 {[%emt 0:00:00]} 11. d4 {[%emt 0:00:30]} Qc7 {[%emt 0:00:00]} 12. Nbd2 {[%emt 0:00:30]} cxd4 {[%emt 0:00:30]} 13. cxd4 {[%emt 0:00:30]} Rd8 {[%emt 0:00:30]} 14. Bd3 {[%emt 0:12:30]} Nc6 {[%emt 0:07:30]} 15. d5 {[%emt 0:03:30]} Nb4 {[%emt 0:00:30]} 16. Bb1 {[%emt 0:00:00]} a5 $1 {[%emt 0:00:30]} 17. a3 {[%emt 0:01:00]} Na6 {[%emt 0:00:30]} 18. Nf1 {[%emt 0:05:30]} Nc5 {[%emt 0:02:30]} 19. Bg5 {[%emt 0:01:30]} h6 {[%emt 0:06:30]} 20. Bd2 {[%emt 0:00:30]} Bd7 {[%emt 0:01:30]} 21. Bc2 {[%emt 0:00:30]} a4 {[%emt 0:03:30]} 22. Rc1 {[%emt 0:02:30]} Qb7 {[%emt 0:00:30]} 23. Ng3 {[%emt 0:00:30]} Rac8 {[%emt 0:08:30]} 24. Nh2 {[%emt 0:01:30]} Re8 {[%emt 0:02:30]} 25. Nh5 {[%emt 0:01:30]} Nxh5 {[%emt 0:04:30]} 26. Qxh5 {[%emt 0:00:30]} Bf8 {[%emt 0:00:00]} 27. Re3 {[%emt 0:06:30]} g6 {[%emt 0:09:00]} 28. Rg3 {[%emt 0:01:30]} Bg7 {[%emt 0:00:30]} 29. Qh4 {[%emt 0:04:30]} h5 {[%emt 0:06:30]} 30. Bd1 {[%emt 0:06:30]} Kf8 {[%emt 0:04:30] [#]} 31. Bxh5 $1 {[%emt 0:07:30]} Nb3 $16 {[%emt 0:04:30]} 32. Rxc8 {[%emt 0:04:30]} Rxc8 {[%emt 0:01:30]} (32... Bxc8 $16 33. Bb4 Qe7 34. Qxe7+ Kxe7) 33. Bb4 {[%emt 0:04:30]} Qb6 {[%emt 0:04:30]} 34. Bg4 {[%emt 0:08:30]} Rc1+ {[%emt 0:02:30]} 35. Nf1 {[%emt 0:00:00]} Bxg4 {[%emt 0:01:30]} 36. Qxg4 {[%emt 0:01:00]} Qc7 {[%emt 0:02:30]} 37. Rc3 {[%emt 0:02:30]} Rxc3 {[%emt 0:00:30]} 38. bxc3 {[%emt 0:01:30]} Ke7 {[%emt 0:01:30]} 39. Ne3 {[%emt 0:03:00]} Bf6 {[%emt 0:02:30]} 40. h4 {[%emt 0:00:00]} Qd7 {[%emt 0:00:00]} 41. Qg3 {[%emt 0:07:30]} Nd2 {[%emt 0:05:00]} 42. f3 {[%emt 0:01:30]} Nc4 {[%emt 0:07:30]} 43. Nxc4 {[%emt 0:00:30]} bxc4 {[%emt 0:00:00]} 44. Qf2 {[%emt 0:00:00]} Qb7 {[%emt 0:00:00]} 45. g3 {[%emt 0:00:00]} Kd7 {[%emt 0:00:30]} 46. Kg2 {[%emt 0:00:30]} Bd8 {[%emt 0:01:30]} 47. f4 {[%emt 0:01:30]} f6 {[%emt 0:03:30]} 48. fxe5 {[%emt 0:01:30]} dxe5 {[%emt 0:00:00]} 49. Qc5 {[%emt 0:00:30]} Qa6 {[%emt 0:02:00]} 50. Qf8 {[%emt 0:01:30]} Qb6 {[%emt 0:01:30]} 51. Qf7+ {[%emt 0:01:30]} Kc8 {[%emt 0:00:30]} 52. Qxg6 {[%emt 0:00:30]} Qe3 {[%emt 0:00:30]} 53. Qf5+ {[%emt 0:00:30]} Kc7 {[%emt 0:00:30]} 54. Qf3 {[%emt 0:02:30]} Qd2+ {[%emt 0:00:30]} 55. Qf2 {[%emt 0:00:00]} Qxf2+ {[%emt 0:00:30]} 56. Kxf2 {[%emt 0:00:00]} Kd7 {[%emt 0:00:30]} 57. Kf3 {[%emt 0:00:00]} Ke8 {[%emt 0:00:30]} 58. Kg4 {[%emt 0:00:00]} Kf7 {[%emt 0:00:00]} 59. Kf5 {[%emt 0:00:30]} Bb6 {[%emt 0:00:00]} 60. d6 {[%emt 0:00:30]} Bd8 {[%emt 0:01:30]} 61. g4 {[%emt 0:00:30]} Bb6 {[%emt 0:00:30]} 62. g5 {[%emt 0:00:30]} fxg5 {[%emt 0:00:30]} 63. hxg5 {[%emt 0:00:00]} Bd8 {[%emt 0:00:00]} 64. g6+ {[%emt 0:00:00]} Kg7 {[%emt 0:00:00]} 65. d7 {[%emt 0:00:30]} Kh6 {[%emt 0:00:30]} 66. Bf8+ {[%emt 0:00:00]} 1-0

[Event "25th Zadar Open 2018"]
[Site "Zadar"]
[Date "2018.12.22"]
[Round "9.27"]
[White "Warakomska, Anna"]
[Black "Parnali, S Dharia"]
[Result "0-1"]
[ECO "D02"]
[WhiteElo "2233"]
[BlackElo "2118"]
[Annotator "NA"]
[PlyCount "76"]
[EventDate "2018.12.15"]
[EventType "swiss"]
[EventCountry "CRO"]
[SourceTitle "playchess.com"]
[Source "ChessBase"]
[SourceQuality "1"]
[TimeControl "40/5400+30:1800+30"]

{[%evp 13,49,-13,1,-12,-4,-24,0,-7,1,-11,22,-45,-24,-18,50,48,75,0,79,65,49,67,32767,32767,32767,32767,93,92,107,79,310,32767,41,21,64,22,63,0]} 1. d4 {[%emt 0:00:30]} d5 {[%emt 0:00:30]} 2. Bf4 {[%emt 0:00:30]} Nf6 {[%emt 0:00:00]} 3. e3 {[%emt 0:00:00]} e6 {[%emt 0:00:00]} 4. Nd2 {[%emt 0:00:00]} Bd6 {[%emt 0:00:30]} 5. Bg3 {[%emt 0:00:30]} c5 {[%emt 0:00:00]} 6. c3 {[%emt 0:00:00]} Qc7 {[%emt 0:00:00]} 7. Bd3 {[%emt 0:06:00]} O-O {[%emt 0:02:30]} 8. Ngf3 {[%emt 0:04:30]} Nbd7 {[%emt 0:00:30]} 9. O-O {[%emt 0:01:30] D02: 1 d4 d5 2 Nf3 sidelines, including 2...Nf6 3 g3 and 2...Nf6 3 Bf4} e5 {[%emt 0:06:30]} 10. dxe5 {[%emt 0:00:30] LiveBook: 5 Games} Nxe5 {[%emt 0:00:00]} 11. Nxe5 {[%emt 0:01:30]} Bxe5 {[%emt 0:00:00]} 12. f4 $146 {[%emt 0:02:30]} ({Predecessor:} 12. Qc2 Bxg3 13. hxg3 b6 14. e4 Bb7 15. exd5 Bxd5 16. Rfe1 Rfe8 17. Ne4 Bxe4 18. Bxe4 Nxe4 19. Rxe4 Qc6 20. Rae1 {½-½ (20) Korobov,A (2685)-Romanov,E (2611) Biograd 2018}) 12... Bd6 {[%emt 0:01:30]} 13. c4 {[%emt 0:00:00]} Ng4 {[%emt 0:08:30]} ({Better is} 13... b5 $11) 14. Qf3 {[%emt 0:06:00]} d4 {[%emt 0:13:30]} 15. e4 {[%emt 0:14:30]} (15. exd4 $16 cxd4 16. c5 (16. Qe4 Nf6 $15) 16... Qxc5 17. Rac1) 15... Ne3 {[%emt 0:00:30]} (15... f5 $11) 16. e5 {[%emt 0:02:30]} Be7 {[%emt 0:00:30]} 17. f5 $1 {[%emt 0:00:30]} Bg5 {[%emt 0:06:30]} 18. Rf2 {[%emt 0:09:30]} Qb6 {[%emt 0:04:30]} 19. Bf4 {[%emt 0:16:30]} Qh6 {[%emt 0:03:30] [#]} 20. Bxg5 $1 {[%emt 0:01:30]} Qxg5 {[%emt 0:01:30]} 21. Ne4 {[%emt 0:01:30]} Qe7 $2 {[%emt 0:02:30] [#]} (21... Qg4 $14) 22. f6 $2 {[%emt 0:01:30]} ({White must play} 22. Qg3 $1 $18 Qc7 23. Nf6+ Kh8 {[#]} 24. Nxh7 $1 {[%mdl 512]} Nxf5 25. Bxf5 Bxf5 26. Nxf8) 22... Qxe5 {[%emt 0:01:30]} 23. fxg7 {[%emt 0:00:30]} Kxg7 {[%emt 0:00:30]} 24. Nf6 $11 {[%emt 0:00:30]} a5 {[%emt 0:04:30]} 25. Nxh7 {[%emt 0:05:30]} Ng4 {[%emt 0:00:30]} 26. Nxf8 {[%emt 0:02:30]} Qxh2+ {[%emt 0:00:00]} 27. Kf1 {[%emt 0:00:00]} Nxf2 {[%emt 0:00:00]} 28. Kxf2 {[%emt 0:02:00]} Kxf8 {[%emt 0:01:30]} 29. Bg6 {[%emt 0:02:54]} Be6 {[%emt 0:01:30]} 30. b3 {[%emt 0:06:52]} Kg7 {[%emt 0:04:30]} 31. Be4 {[%emt 0:00:50]} Qh4+ {[%emt 0:01:30]} 32. Kg1 {[%emt 0:03:19]} Rh8 {[%emt 0:01:30]} 33. Bxb7 {[%emt 0:04:50]} Rh6 {[%emt 0:00:30]} 34. Qf1 {[%emt 0:01:27]} Bg4 {[%emt 0:01:30]} 35. Qf4 {[%emt 0:01:37]} Qh1+ {[%emt 0:01:30]} 36. Kf2 {[%emt 0:00:05]} Qxa1 {[%emt 0:00:30]} 37. Qe5+ {[%emt 0:00:37]} Rf6+ {[%emt 0:00:00]} 38. Kg3 {[%emt 0:00:07]} Bf5 {[%emt 0:00:00]} 0-1